bitfinex-derivatives/quotes_SOLF0:USTF0_20251107
["timestamp","ask_amount","ask_price","bid_price","bid_amount"]
[1762546542824,2.94692776,163.41,163.37,0.04475921]
[1762546543527,2.9,163.38,163.37,0.04475921]
[1762546544430,2.9,163.4,163.37,0.04475921]
[1762546545340,8.4116,163.4,163.37,0.04475921]
[1762546545526,2.9,163.39,163.37,0.04475921]
[1762546546030,8.4119,163.39,163.37,0.04475921]
[1762546546224,2.9,163.38,163.37,0.04475921]
[1762546546928,2.9,163.37,163.31,1.06500184]
[1762546547620,2.9,163.36,163.3,62.46]
[1762546547828,11.0195,163.46,163.31,0.0378428]
[1762546547829,2.9,163.34,163.31,0.0378428]
[1762546548035,2.94578756,163.34,163.31,0.0378428]
[1762546548429,0.04578756,163.34,163.31,0.0378428]
[1762546548630,0.04578756,163.34,163.32,5.514]
[1762546549037,0.04578756,163.34,163.31,0.0378428]
[1762546549338,0.04578756,163.34,163.31,5.5521428]
[1762546550135,0.04578756,163.34,163.32,5.514]
[1762546552938,0.04578756,163.34,163.31,0.0378428]
[1762546553441,0.04578756,163.34,163.32,5.514]
[1762546553830,0.04578756,163.34,163.33,62.0]
[1762546554226,0.04578756,163.34,163.32,5.514]
[1762546554537,0.04578756,163.34,163.33,62.46]
[1762546555733,2.94578756,163.34,163.31,0.0378428]
[1762546556338,0.04578756,163.34,163.31,0.0378428]
[1762546556726,2.94578756,163.34,163.31,0.0378428]
[1762546557127,2.9,163.33,163.31,0.0378428]
[1762546557733,8.414,163.33,163.31,0.0378428]
[1762546558041,2.9,163.32,163.31,0.0378428]
[1762546560232,2.9,163.33,163.31,0.0378428]
[1762546560845,0.04578756,163.34,163.31,0.0378428]
[1762546561344,0.04578756,163.34,163.32,5.5139]
[1762546561943,2.94578756,163.34,163.31,0.0378428]
[1762546562245,2.95,163.32,163.24,67.62267691]
[1762546562439,0.04578756,163.34,163.24,67.62267691]
[1762546562440,8.4647,163.31,163.24,5.62267691]
[1762546562741,2.95,163.31,163.23,63.52553989]
[1762546562937,5.5136,163.34,163.26,5.516]
[1762546563143,0.04333224,163.32,163.25,5.62267691]
[1762546563543,0.04333224,163.32,163.23,63.52553989]
[1762546563942,0.04333224,163.32,163.26,5.5159]
[1762546564147,0.04333224,163.32,163.23,63.52553989]
[1762546564338,0.04333224,163.32,163.24,5.62267691]
[1762546565047,2.99333224,163.32,163.27,5.5157]
[1762546565248,2.99333224,163.32,163.24,5.62267691]
[1762546565446,2.99333224,163.32,163.28,5.5154]
[1762546565649,0.04333224,163.32,163.25,62.0]
[1762546566545,0.04333224,163.32,163.28,5.5153]
[1762546566853,0.04333224,163.32,163.28,62.48]
[1762546567646,0.04333224,163.32,163.3,5.5147]
[1762546568553,2.99333224,163.32,163.28,62.48]
[1762546569148,2.95,163.3,163.28,62.48]
[1762546569847,2.95,163.29,163.2,5.62267691]
[1762546570153,2.95,163.29,163.23,62.48]
[1762546570154,0.04327118,163.26,163.23,62.48]
[1762546570954,0.04327118,163.26,163.24,5.5167]
[1762546571851,2.95,163.33,163.26,5.5161]
[1762546572151,2.95,163.33,163.24,6.84267691]
[1762546572152,8.4649,163.3,163.24,5.62267691]
[1762546572451,5.67370359,163.37,163.23,62.48]
[1762546572452,2.95,163.29,163.23,62.48]
[1762546572852,0.04681243,163.28,163.27,5.5157]
[1762546573046,5.67129184,163.37,163.23,62.48]
[1762546573047,2.95,163.33,163.23,62.48]
[1762546573249,2.95,163.33,163.21,1.065752]
[1762546573250,2.99191994,163.29,163.26,0.04327119]
[1762546573451,2.99016471,163.29,163.26,0.04327119]
[1762546573649,8.4656,163.28,163.26,0.04327119]
[1762546574162,2.95,163.27,163.26,0.04327119]
[1762546574847,5.5162,163.26,163.23,62.48]
[1762546575052,2.95,163.25,163.23,62.48]
[1762546575250,2.95,163.3,163.23,62.48]
[1762546575756,2.95,163.3,163.25,5.5164]
[1762546576052,2.95,163.28,163.23,62.48]
[1762546576952,2.95,163.28,163.24,5.5167]
[1762546577660,2.95,163.28,163.23,62.48]
[1762546577961,0.04106561,163.29,163.23,62.48]
[1762546578351,0.04106561,163.29,163.26,5.516]
[1762546579157,0.04106561,163.29,163.23,67.9969]
[1762546579359,0.04106561,163.29,163.23,62.48]
[1762546580359,2.99106561,163.29,163.23,2.16049445]
[1762546580562,2.95,163.27,163.21,2.16049445]
[1762546580861,2.95,163.25,163.21,2.16049445]
[1762546581467,2.99381649,163.26,163.21,2.16049445]
[1762546581653,0.04381649,163.26,163.21,2.16049445]
[1762546581862,2.99381649,163.26,163.23,2.16049445]
[1762546583063,2.99381649,163.26,163.21,2.16049445]
[1762546583260,2.99381649,163.26,163.21,7.67819445]
[1762546583656,5.5166,163.25,163.21,2.16049445]
[1762546583860,2.95,163.24,163.18,63.54580096]
[1762546584060,2.99178888,163.23,163.2,2.16049445]
[1762546584262,2.95,163.21,163.18,64.64049445]
[1762546584765,2.9943319,163.23,163.18,70.15929445]
[1762546585363,2.95,163.22,163.18,64.64049445]
[1762546585661,2.95,163.22,163.18,62.48]
[1762546586069,8.4681,163.21,163.18,62.48]
[1762546586566,2.95,163.21,163.18,62.48]
[1762546588268,2.95,163.21,163.17,5.5191]
[1762546588269,2.9943319,163.23,163.11,5.63091962]
[1762546588463,2.99603869,163.19,163.12,62.5]
[1762546588761,11.39,163.18,163.12,62.5]
[1762546589661,11.39,163.18,163.14,5.63091962]
[1762546590369,11.39,163.18,163.15,62.0]
[1762546590661,7.54186963,163.31,163.15,62.0]
[1762546590662,2.95,163.28,163.16,62.5]
[1762546590857,2.95,163.28,163.18,5.63091962]
[1762546591662,0.04358716,163.25,163.21,0.04426272]
[1762546591868,0.04358716,163.25,163.22,62.5]
[1762546592570,0.04358716,163.25,163.23,5.5169]
[1762546592774,0.04358716,163.25,163.22,62.5]
[1762546593163,0.04358716,163.25,163.23,5.517]
[1762546593364,0.04358716,163.25,163.22,62.5]
[1762546593560,0.04358716,163.25,163.23,62.5]
[1762546593766,0.04358716,163.25,163.23,68.0171]
[1762546594167,2.98,163.32,163.23,62.5]
[1762546595072,0.03942327,163.29,163.26,0.03923551]
[1762546596882,0.03942327,163.29,163.27,5.5157]
[1762546597083,0.03942327,163.29,163.28,62.48]
[1762546597887,8.83,163.35,163.28,62.48]
[1762546598282,8.83,163.35,163.31,5.5142]
[1762546598480,2.98,163.39,163.28,62.48]
[1762546598685,4.78984269,163.38,163.3,5.63091962]
[1762546598986,0.04135057,163.36,163.32,0.04025899]
[1762546599188,0.04135057,163.36,163.33,62.48]
[1762546599383,0.04135057,163.36,163.34,5.5133]
[1762546599681,0.04135057,163.36,163.33,62.48]
[1762546599889,0.04135057,163.36,163.34,62.48]
[1762546600083,0.04135057,163.36,163.32,0.04025899]
[1762546600395,2.98,163.34,163.32,0.04025899]
[1762546601582,3.04135057,163.36,163.32,0.04025899]
[1762546601784,0.04135057,163.36,163.32,0.04025899]
[1762546602084,3.04135057,163.36,163.32,0.04025899]
[1762546602484,3.04135057,163.36,163.32,62.52025899]
[1762546603488,0.04135057,163.36,163.32,62.52025899]
[1762546603786,0.04135057,163.36,163.33,5.5135]
[1762546604086,15.86723095,163.43,163.35,5.63091962]
[1762546604087,10.18,163.43,163.35,5.63091962]
[1762546604276,10.18,163.43,163.35,23.93943385]
[1762546604483,3.0,163.42,163.36,62.46]
[1762546604683,3.0,163.41,163.36,62.46]
[1762546605181,0.04628655,163.4,163.37,62.49934849]
[1762546606792,3.04628655,163.4,163.37,0.03934849]
[1762546606990,3.04628655,163.4,163.38,47.76]
[1762546607285,3.04628655,163.4,163.37,0.03934849]
[1762546607588,3.0,163.38,163.33,62.46]
[1762546607980,8.5123,163.38,163.33,62.46]
[1762546608186,3.0,163.38,163.25,265.23730305]
[1762546608390,3.0,163.36,163.26,62.46]
[1762546608584,0.03879237,163.33,163.29,0.04092976]
[1762546608898,3.03879237,163.33,163.29,62.50092976]
[1762546609788,3.03879237,163.33,163.29,0.04092976]
[1762546610192,3.0,163.3,163.29,0.04092976]
[1762546610394,3.0,163.3,163.25,62.46]
[1762546610791,3.0,163.27,163.19,78.34]
[1762546611193,3.0,163.27,163.2,62.46]
[1762546611398,0.04500551,163.25,163.22,0.04557126]
[1762546611985,3.04500551,163.25,163.22,0.04557126]
[1762546612597,3.0,163.24,163.22,0.04557126]
[1762546615387,0.04500551,163.25,163.22,0.04557126]
[1762546615592,3.04500551,163.25,163.22,0.04557126]
[1762546616593,0.04500551,163.25,163.22,0.04557126]
[1762546616793,3.04500551,163.25,163.22,0.04557126]
[1762546619099,8.56170551,163.25,163.22,0.04557126]
[1762546619398,3.04500551,163.25,163.22,0.04557126]
[1762546620104,3.0,163.23,163.22,0.04557126]
[1762546620406,8.517,163.24,163.22,0.04557126]
[1762546620702,3.0,163.24,163.22,0.04557126]
[1762546621695,3.04500551,163.25,163.22,0.04557126]
[1762546621893,0.04500551,163.25,163.22,0.04557126]
[1762546622294,2.91500551,163.25,163.22,0.04557126]
[1762546622605,0.04500551,163.25,163.22,0.04557126]
[1762546623303,0.04500551,163.25,163.22,5.56297126]
[1762546623994,0.04500551,163.25,163.22,0.04557126]
[1762546624596,0.04500551,163.25,163.23,5.517]
[1762546624799,8.3841,163.33,163.22,1.26557126]
[1762546624998,8.3841,163.33,163.21,62.48]
[1762546625300,2.87,163.38,163.23,8.62328697]
[1762546625502,2.87,163.36,163.23,8.62328697]
[1762546625706,0.04247648,163.31,163.28,0.03961912]
[1762546625904,0.04247648,163.31,163.28,62.51961912]
[1762546626508,2.91247648,163.31,163.28,0.03961912]
[1762546627205,2.87,163.29,163.21,5.5177]
[1762546627408,2.87,163.29,163.15,8.62328697]
[1762546627409,2.87,163.29,163.2,45.02]
[1762546628105,2.87,163.26,163.2,45.02]
[1762546628402,2.87,163.24,163.21,0.04621439]
[1762546628601,0.04166476,163.24,163.21,0.03944417]
[1762546628807,0.04166476,163.24,163.21,5.55714417]
[1762546629110,0.04166476,163.24,163.21,0.03944417]
[1762546630308,9.25,163.29,163.21,1.25944417]
[1762546630511,9.25,163.29,163.21,0.03944417]
[1762546630706,9.25,163.29,163.23,8.62328697]
[1762546631104,9.25,163.29,163.27,5.5157]
[1762546631410,0.04425935,163.3,163.28,62.46]
[1762546631615,0.04431457,163.31,163.28,62.46]
[1762546631804,0.04431457,163.31,163.28,0.03960675]
[1762546632007,0.04431457,163.31,163.29,62.46]
[1762546632409,0.04431457,163.31,163.28,0.03960675]
[1762546632711,0.04431457,163.31,163.29,62.46]
[1762546632919,0.04431457,163.31,163.28,0.03960675]
[1762546632920,0.04431457,163.31,163.28,68.01490675]
[1762546633215,0.04431457,163.31,163.29,62.0]
[1762546634801,2.91431457,163.31,163.28,0.03960675]
[1762546636414,0.04431457,163.31,163.28,0.03960675]
[1762546637305,2.91431457,163.31,163.28,0.03960675]
[1762546638809,2.91431457,163.31,163.17,9.0]
[1762546639005,2.87,163.31,163.18,62.46]
[1762546639203,2.87,163.25,163.12,276.06190303]
[1762546639401,2.87,163.25,163.13,8.62328697]
[1762546639603,2.87,163.25,163.12,267.06190303]
[1762546639800,8.3887,163.19,163.17,0.03859561]
[1762546639998,2.87,163.18,163.16,0.04551261]
[1762546640405,5.5187,163.19,163.16,0.04551261]
[1762546640610,2.87,163.18,163.16,0.04551261]
[1762546640810,2.87,163.17,163.09,1.06638883]
[1762546641005,2.87,163.17,162.94,78.36]
[1762546641207,5.68037585,163.22,162.94,78.36]
[1762546641208,2.87,163.15,163.03,1.06692829]
[1762546641510,5.5212,163.12,163.04,62.46]
[1762546641907,2.87,163.15,163.06,0.04013519]
[1762546641908,0.0466423,163.1,163.06,0.04013519]
[1762546642210,0.0466423,163.1,162.98,62.46]
[1762546642211,2.9166423,163.1,162.98,62.46]
[1762546642411,2.87,163.1,162.98,62.46]
[1762546642611,5.5226,163.08,162.98,63.52717368]
[1762546642815,2.87,163.1,162.98,63.52717368]
[1762546643314,0.04599342,163.06,163.02,5.524]
[1762546643519,0.04599342,163.06,163.01,8.62328697]
[1762546643711,2.87,163.2,163.05,8.62328697]
[1762546643908,2.87,163.18,163.08,5.5223]
[1762546644620,0.04668229,163.15,163.11,0.04373829]
[1762546644816,0.04668229,163.15,163.12,62.48]
[1762546645506,2.91668229,163.15,163.11,0.04373829]
[1762546646312,0.04668229,163.15,163.11,0.04373829]
[1762546646516,0.04668229,163.15,163.13,5.5205]
[1762546646712,0.04668229,163.15,163.14,62.48]
[1762546648509,0.04668229,163.15,163.13,62.48]
[1762546648713,0.04668229,163.15,163.12,62.48]
[1762546648714,2.91668229,163.15,163.12,62.48]
[1762546648920,2.91668229,163.15,163.11,0.04373829]
[1762546649121,7.58869856,163.14,162.98,1.06717368]
[1762546649318,2.87,163.12,162.99,6.5]
[1762546649620,5.68037585,163.17,162.99,6.5]
[1762546649621,2.87,163.09,162.99,6.5]
[1762546650123,0.04518653,163.06,162.99,62.5]
[1762546650521,0.04518653,163.06,163.0,5.5247]
[1762546650715,0.04518653,163.06,162.99,62.5]
[1762546650920,2.91518653,163.06,162.99,62.5]
[1762546651116,8.43828653,163.06,162.98,6.59257368]
[1762546651315,8.43828653,163.06,162.87,164.4105]
[1762546651316,2.87,163.04,162.9,62.5]
[1762546651522,0.03985818,162.99,162.9,62.5]
[1762546651717,0.03985818,162.99,162.9,68.0282]
[1762546651923,0.03985818,162.99,162.9,62.5]
[1762546652231,0.03985818,162.99,162.91,67.5278]
[1762546652433,2.89985818,162.99,162.91,62.0]
[1762546653036,0.03985818,162.99,162.92,62.84]
[1762546653236,2.89985818,162.99,162.84,8.62328697]
[1762546653436,0.03959271,162.93,162.88,8.62328697]
[1762546653631,16.1651566,163.08,162.92,8.62328697]
[1762546653632,2.86,163.08,162.92,8.62328697]
[1762546653837,2.86,163.08,162.99,5.5252]
[1762546654032,5.68037585,163.14,162.99,5.5252]
[1762546654336,5.68037585,163.14,162.97,8.62328697]
[1762546654337,2.86,163.12,163.0,10.62]
[1762546654535,0.03936577,163.08,163.04,0.03926116]
[1762546655729,2.89936577,163.08,162.98,23.82699371]
[1762546655934,2.86,163.14,162.98,23.82699371]
[1762546656141,4.70390177,163.13,162.99,62.0]
[1762546656327,2.86,163.14,163.01,8.62328697]
[1762546656733,0.04441506,163.09,163.06,0.02003517]
[1762546657633,0.04441506,163.09,163.07,22.88]
[1762546658039,0.04441506,163.09,163.07,29.96]
[1762546659634,0.04441506,163.09,163.07,91.96]
[1762546660134,0.04441506,163.09,163.06,0.02003517]
[1762546660441,0.04441506,163.09,163.07,32.64]
[1762546660742,0.04441506,163.09,163.06,0.02003517]
[1762546660942,0.04441506,163.09,163.06,13.58003517]
[1762546661240,8.4626,163.07,162.98,1.06699371]
[1762546661541,2.94,163.07,162.98,1.06699371]
[1762546661742,2.94,163.07,162.98,6.59239371]
[1762546662136,2.94,163.11,162.98,1.06699371]
[1762546662336,0.03943785,163.06,163.0,5.5247]
[1762546662542,0.03943785,163.06,162.98,1.06699371]
[1762546663243,0.03943785,163.06,162.99,62.0]
[1762546663837,0.03943785,163.06,163.0,63.28]
[1762546664042,0.03943785,163.06,163.0,63.3]
[1762546664440,0.03943785,163.06,162.98,1.06699371]
[1762546664646,5.56273785,163.06,162.98,1.06699371]
[1762546665040,5.56273785,163.06,162.99,63.28]
[1762546665233,2.97943785,163.06,162.93,8.62328697]
[1762546665440,2.94,163.06,162.93,8.62328697]
[1762546665742,0.04569362,163.01,162.94,63.28]
[1762546667042,0.04569362,163.01,162.95,62.0]
[1762546667835,0.04569362,163.01,162.97,5.5258]
[1762546668448,0.04569362,163.01,162.96,63.28]
[1762546669839,0.04569362,163.01,162.99,5.5251]
[1762546670043,2.94,163.11,162.97,26.94328697]
[1762546670439,2.94,163.11,162.98,63.26]
[1762546670646,2.94,163.11,162.99,63.26]
[1762546670947,0.04325505,163.07,163.03,0.04569362]
[1762546671246,0.04325505,163.07,163.03,0.04386355]
[1762546671440,2.98325505,163.07,163.03,0.04386355]
[1762546671640,2.98325505,163.07,163.03,63.22386355]
[1762546672248,2.98325505,163.07,163.03,0.04386355]
[1762546672450,8.50615505,163.07,163.03,63.30386355]
[1762546672652,8.50615505,163.07,163.03,0.04386355]
[1762546672849,8.50615505,163.07,163.03,63.26386355]
[1762546673050,2.98325505,163.07,163.03,63.26386355]
[1762546673252,5.5232,163.06,163.03,63.26386355]
[1762546673450,2.98325505,163.07,163.03,63.26386355]
[1762546674246,8.50615505,163.07,163.03,63.26386355]
[1762546674450,2.94,163.06,163.03,0.04386355]
[1762546674748,5.5232,163.06,163.03,0.04386355]
[1762546674948,2.98325505,163.07,163.03,0.04386355]
[1762546675149,2.98325505,163.07,163.03,63.22386355]
[1762546675345,2.98325505,163.07,163.03,0.04386355]
[1762546675751,0.04325505,163.07,163.03,63.28386355]
[1762546678246,0.04325505,163.07,163.03,0.04386355]
[1762546678448,2.98325505,163.07,163.03,0.04386355]
[1762546678846,8.50605505,163.07,163.03,0.04386355]
[1762546679043,0.04325505,163.07,163.03,0.04386355]
[1762546679947,2.98325505,163.07,163.03,0.04386355]
[1762546680147,0.04325505,163.07,163.03,0.04386355]
[1762546680350,4.92780355,163.06,163.04,63.24]
[1762546680551,0.04325505,163.07,163.04,63.24]
[1762546681348,0.04325505,163.07,163.05,63.22]
[1762546682258,4.93493566,163.06,163.04,5.5235]
[1762546682450,0.04325505,163.07,163.04,5.5235]
[1762546682451,0.04325505,163.07,163.05,63.22]
[1762546683044,4.9355202,163.06,163.03,0.04386355]
[1762546683347,4.9355202,163.05,163.03,0.04386355]
[1762546683548,4.9355202,163.04,163.03,0.04386355]
[1762546684142,7.9655202,163.04,162.96,5.63842064]
[1762546684343,7.58512468,163.07,163.01,63.22]
[1762546684344,4.9355202,163.03,163.01,63.22]
[1762546684552,4.9355202,163.02,163.01,63.22]
[1762546685757,4.9355202,163.02,163.01,63.24]
[1762546685958,4.90205879,163.02,163.01,63.24]
[1762546686562,4.90205879,163.02,163.01,63.22]
[1762546686758,4.90205879,163.02,162.97,62.0]
[1762546686953,0.04454725,163.03,163.01,63.2]
[1762546687153,4.87973452,163.02,163.01,63.2]
[1762546687946,4.87973452,163.02,162.97,62.0]
[1762546688146,4.87973452,163.01,162.98,63.18]
[1762546688356,0.04454725,163.03,162.95,5.63842064]
[1762546688357,4.87805738,163.0,162.95,5.63842064]
[1762546688655,4.91874189,162.99,162.92,1.06748466]
[1762546688962,3.03,162.97,162.93,63.2]
[1762546689260,4.87805738,162.96,162.93,68.7272]
[1762546689461,0.04068451,162.99,162.93,68.7272]
[1762546689663,7.90614549,162.98,162.93,63.2]
[1762546689957,4.87614549,162.97,162.93,63.2]
[1762546690159,4.87614549,162.96,162.93,63.2]
[1762546690355,0.04068451,162.99,162.93,63.2]
[1762546690861,0.04068451,162.99,162.96,5.5261]
[1762546691053,0.04068451,162.99,162.92,1.06748466]
[1762546691258,4.77930815,162.98,162.93,125.22]
[1762546691458,0.04068451,162.99,162.93,125.22]
[1762546691659,4.7789085,162.98,162.93,125.22]
[1762546691860,4.77900533,162.97,162.94,63.24]
[1762546692066,3.03,162.97,162.94,63.24]
[1762546692457,3.07068451,162.99,162.94,63.24]
[1762546692653,7.81077827,162.98,162.95,63.24]
[1762546692959,4.78077827,162.97,162.95,63.24]
[1762546693154,3.03,162.98,162.95,63.24]
[1762546693358,4.78764854,162.97,162.94,63.24]
[1762546693558,0.0440544,162.97,162.94,63.24]
[1762546694169,0.0440544,162.97,162.94,68.7668]
[1762546694562,0.0440544,162.97,162.94,63.24]
[1762546694769,0.0440544,162.97,162.94,68.7669]
[1762546694965,0.0440544,162.97,162.94,63.24]
[1762546695164,3.03,163.05,162.95,5.63842064]
[1762546695356,3.03,163.03,162.95,5.63842064]
[1762546695561,3.03,163.03,162.96,63.22]
[1762546695866,3.03,163.03,162.97,68.746]
[1762546696061,0.04478571,163.02,162.98,0.04180298]
[1762546696965,3.07478571,163.02,162.98,0.04180298]
[1762546697166,3.03,163.0,162.98,0.04180298]
[1762546697363,3.03,162.99,162.98,0.04180298]
[1762546697665,0.04478571,163.02,162.98,0.04180298]
[1762546698870,3.03,163.01,162.99,63.22]
[1762546699466,8.5551,163.0,162.98,0.04180298]
[1762546699666,3.03,163.0,162.98,63.26180298]
[1762546699869,0.04478571,163.02,162.98,63.26180298]
[1762546700063,0.04478571,163.02,162.99,63.22]
[1762546701069,0.04478571,163.02,163.0,63.22]
[1762546701667,3.07478571,163.02,162.98,0.04180298]
[1762546701875,8.5552,163.0,162.98,0.00180298]
[1762546702074,3.03,163.01,162.98,0.00180298]
[1762546702370,0.04478571,163.02,162.98,63.26180298]
[1762546703567,0.04478571,163.02,162.98,0.00180298]
[1762546703768,0.04478571,163.02,162.99,63.24]
[1762546703971,3.07478571,163.02,162.98,0.00180298]
[1762546704170,3.07478571,163.02,162.99,63.24]
[1762546704473,3.07478571,163.02,162.98,0.00180298]
[1762546704774,3.03,163.0,162.98,0.00180298]
[1762546704972,3.03,162.99,162.98,0.00180298]
[1762546705176,7.82157648,162.99,162.98,0.00180298]
[1762546705377,6.01157648,162.99,162.91,63.26]
[1762546705570,5.5265,162.96,162.91,63.26]
[1762546705762,8.5565,162.96,162.9,268.10951902]
[1762546705966,3.03,162.96,162.91,63.28]
[1762546706371,0.04585201,162.95,162.91,63.28]
[1762546706568,0.04499807,162.95,162.91,63.28]
[1762546708574,3.07499807,162.95,162.91,63.28]
[1762546709072,0.04499807,162.95,162.91,63.28]
[1762546710172,3.07499807,162.95,162.91,63.28]
[1762546710766,0.04499807,162.95,162.91,63.22]
[1762546710980,3.07499807,162.95,162.91,63.22]
[1762546711475,3.07499807,162.95,162.86,5.63842064]
[1762546711476,3.07499807,162.95,162.9,63.22]
[1762546711671,3.07499807,162.95,162.91,63.22]
[1762546712672,0.04499807,162.95,162.91,63.22]
[1762546713380,0.04499807,162.95,162.92,5.5274]
[1762546713572,0.04499807,162.95,162.91,63.22]
[1762546713971,0.04499807,162.95,162.9,63.18]
[1762546714171,0.03938106,162.94,162.91,63.18]
[1762546715476,0.03938106,162.94,162.92,5.5274]
[1762546715679,0.18413,163.06,162.93,6.85842064]
[1762546715972,2.96,163.04,162.93,5.63842064]
[1762546716580,0.04076306,163.0,162.97,0.04346255]
[1762546717476,3.00076306,163.0,162.97,0.04346255]
[1762546717677,0.04076306,163.0,162.97,0.04346255]
[1762546718275,0.04076306,163.0,162.97,63.28346255]
[1762546718479,3.00076306,163.0,162.97,0.04346255]
[1762546720279,0.04076306,163.0,162.97,0.04346255]
[1762546720479,3.00076306,163.0,162.97,0.04346255]
[1762546720874,2.93,162.98,162.97,0.04346255]
[1762546721274,2.93,162.97,162.91,63.24]
[1762546721475,0.04076306,163.0,162.91,63.24]
[1762546721476,2.93,162.95,162.91,63.24]
[1762546721671,2.93,162.95,162.85,1.0679269]
[1762546722080,5.5271,162.94,162.88,5.5288]
[1762546722282,0.03873283,162.93,162.86,125.22]
[1762546722984,0.03873283,162.93,162.87,63.22]
[1762546723188,0.03873283,162.93,162.88,5.63842064]
[1762546724184,0.03873283,162.93,162.87,63.22]
[1762546724577,0.03873283,162.93,162.86,11.16792064]
[1762546724773,0.03873283,162.93,162.87,63.2]
[1762546726489,0.03873283,162.93,162.9,5.63842064]
[1762546726787,0.03873283,162.93,162.91,5.5277]
[1762546726983,0.03873283,162.93,162.92,63.18]
[1762546727484,8.455,163.0,162.92,63.18]
[1762546727688,2.93,163.0,162.92,63.18]
[1762546728382,0.04713005,162.98,162.94,0.03873283]
[1762546732690,0.04713005,162.98,162.96,5.5261]
[1762546732893,0.04713005,162.98,162.97,63.1]
[1762546733592,0.04713005,162.98,162.97,125.1]
[1762546735387,0.18413,163.06,162.97,125.1]
[1762546735588,0.18413,163.06,162.97,63.1]
[1762546735896,3.11413,163.06,162.97,63.1]
[1762546736387,2.9693746,163.03,163.0,0.04335118]
[1762546737392,8.4934746,163.03,163.0,0.04335118]
[1762546737691,2.93,163.02,163.0,0.04335118]
[1762546738088,0.0393746,163.03,163.0,0.04335118]
[1762546738495,2.9693746,163.03,163.0,0.04335118]
[1762546738998,2.93,163.01,163.0,0.04335118]
[1762546739192,0.0393746,163.03,163.0,0.04335118]
[1762546739384,2.9693746,163.03,163.0,0.04335118]
[1762546739587,0.0393746,163.03,163.0,0.04335118]
[1762546740290,0.0393746,163.03,163.01,63.06]
[1762546741191,2.9693746,163.03,163.02,63.06]
[1762546741388,0.0393746,163.03,163.02,63.06]
[1762546741591,2.9693746,163.03,163.02,63.06]
[1762546741895,2.9693746,163.03,163.0,0.04335118]
[1762546742393,3.06,163.01,163.0,0.04335118]
[1762546742787,5.94530865,163.01,162.91,5.5278]
[1762546742991,5.70929626,163.05,162.92,63.08]
[1762546742992,3.06,162.98,162.92,63.08]
[1762546743387,5.5265,162.96,162.89,5.5284]
[1762546743597,5.5265,162.96,162.9,63.1]
[1762546743795,3.10094774,162.95,162.91,0.0425117]
[1762546744101,3.06,162.93,162.91,0.03994671]
[1762546744294,8.5872,162.94,162.91,0.03994671]
[1762546744597,3.06,162.93,162.91,0.03994671]
[1762546744989,8.5876,162.93,162.91,0.03994671]
[1762546745703,3.06,162.93,162.91,0.03994671]
[1762546746303,3.06,162.92,162.83,63.1]
[1762546746803,5.5285,162.9,162.83,63.1]
[1762546747193,0.04474446,162.88,162.83,63.1]
[1762546748086,3.10474446,162.88,162.77,286.0661285]
[1762546748291,0.03894538,162.84,162.77,267.6561285]
[1762546748490,0.03894538,162.84,162.78,72.9366609]
[1762546748694,0.03894538,162.84,162.78,9.7166609]
[1762546748905,0.03894538,162.84,162.79,125.22]
[1762546749195,0.03894538,162.84,162.79,143.63]
[1762546749388,0.03894538,162.84,162.79,81.63]
[1762546749586,0.03894538,162.84,162.8,5.5317]
[1762546749786,0.03894538,162.84,162.81,63.24]
[1762546750191,0.03894538,162.84,162.78,9.7166609]
[1762546750494,0.03894538,162.84,162.79,63.24]
[1762546750795,0.03894538,162.84,162.79,68.7719]
[1762546751001,0.03894538,162.84,162.79,63.24]
[1762546751197,0.03894538,162.84,162.78,1.06850072]
[1762546751403,0.03894538,162.84,162.8,63.24]
[1762546751798,0.03894538,162.84,162.81,8.64816018]
[1762546751996,3.06,162.93,162.85,5.5298]
[1762546752302,3.06,162.93,162.86,63.24]
[1762546752603,3.06,162.93,162.86,125.24]
[1762546753004,0.04245713,162.91,162.88,0.04048881]